[Event "53rd Indian Junior Open-ch 2024"]
[Site "Karnal"]
[Date "2024.09.23"]
[Round "10.10"]
[White "Vishal Choudary B"]
[Black "Sharnarthi Viresh"]
[Result "1-0"]
[ECO "E73"]
[WhiteElo "1937"]
[BlackElo "2147"]
[Annotator "RC"]
[PlyCount "107"]
[EventDate "2024.09.16"]
[EventType "swiss"]
[EventCountry "IND"]
[SourceTitle "playchess.com"]
[Source "ChessBase"]
[SourceQuality "1"]
[TimeControl "5400+30"]

1. d4 {[%emt 1:31:00]} Nf6 {[%emt 1:31:00]} 2. c4 {[%emt 0:00:30]} g6 {[%emt 0:00:30]} 3. Nc3 {[%emt 0:00:30]} Bg7 {[%emt 0:00:30]} 4. e4 {[%emt 0:00:30]} d6 {[%emt 0:00:30]} 5. Be2 {[%emt 0:00:30]} O-O {[%emt 0:00:30]} 6. h4 {[%emt 0:00:30]} h5 {[%emt 0:00:30]} 7. Nf3 {[%emt 0:00:30]} c5 {[%emt 0:00:30]} 8. d5 {[%emt 0:00:30]} b5 {[%emt 0:00:30]} 9. cxb5 {[%emt 0:00:30]} a6 {[%emt 0:00:30]} 10. a4 {[%emt 0:00:30]} axb5 {[%emt 0:00:30]} 11. Bxb5 {[%emt 0:00:30]} Ba6 {[%emt 0:00:30]} 12. Bg5 {[%emt 0:00:30]} Nbd7 {[%emt 0:00:30]} 13. O-O {[%emt 0:00:30]} Ng4 {[%emt 0:00:30]} 14. Qe2 {[%emt 0:00:30]} Bc8 {[%emt 0:00:30]} 15. Nd2 {[%emt 0:00:30]} Nge5 {[%emt 0:00:30]} 16. Kh1 {[%emt 0:00:30]} Bf6 {[%emt 0:00:30]} 17. f4 {[%emt 0:00:30]} Ng4 {[%emt 0:00:30]} 18. Bxf6 {[%emt 0:00:30]} Ndxf6 {[%emt 0:00:30]} 19. Nf3 {[%emt 0:00:30]} Qa5 {[%emt 0:00:30]} 20. e5 {[%emt 0:00:30]} Ne8 {[%emt 0:00:30]} 21. Bd3 {[%emt 0:00:30]} Ng7 {[%emt 0:00:30]} 22. e6 {[%emt 0:00:30]} Ba6 {[%emt 0:00:30]} 23. Bxa6 {[%emt 0:00:30]} Qxa6 {[%emt 0:00:30]} 24. exf7+ {[%emt 0:00:30]} Rxf7 {[%emt 0:00:30]} 25. Ng5 {[%emt 0:00:30]} Qxe2 {[%emt 0:00:30]} 26. Nxe2 {[%emt 0:00:30]} Rf5 {[%emt 0:00:30]} 27. Nc3 {[%emt 0:00:30]} Ne3 {[%emt 0:00:30]} 28. Rf3 {[%emt 0:00:30]} Nxd5 {[%emt 0:00:30]} 29. g3 {[%emt 0:00:30]} Nc7 {[%emt 0:00:30]} 30. Re3 {[%emt 0:00:30]} Kf8 {[%emt 0:00:30]} 31. Rae1 {[%emt 0:00:30]} e6 {[%emt 0:00:30]} 32. Nb5 {[%emt 0:00:30]} Nxb5 {[%emt 0:00:30]} 33. axb5 {[%emt 0:00:30]} Rxg5 {[%emt 0:00:30]} 34. hxg5 {[%emt 0:00:30]} Ke7 {[%emt 0:00:30]} 35. Ra3 {[%emt 0:00:30]} Rxa3 {[%emt 0:00:30]} 36. bxa3 {[%emt 0:00:30]} Nf5 {[%emt 0:00:30]} 37. b6 {[%emt 0:00:30]} Nd4 {[%emt 0:00:30]} 38. b7 {[%emt 0:00:30]} Nc6 {[%emt 0:00:30]} 39. f5 {[%emt 0:00:30]} gxf5 {[%emt 0:00:30]} 40. g6 {[%emt 0:00:30]} e5 {[%emt 0:00:30]} 41. g7 {[%emt 0:00:30]} Kf7 {[%emt 0:00:30]} 42. Rd1 {[%emt 0:00:30]} Kxg7 {[%emt 0:00:30]} 43. Rxd6 {[%emt 0:00:30]} Nb8 {[%emt 0:00:30]} 44. Rd8 {[%emt 0:00:30]} c4 {[%emt 0:00:30]} 45. Rxb8 {[%emt 0:00:30]} c3 {[%emt 0:00:30]} 46. Rc8 {[%emt 0:00:30]} c2 {[%emt 0:00:30]} 47. Rxc2 {[%emt 0:00:30]} f4 {[%emt 0:00:30]} 48. b8=Q {[%emt 0:00:30]} fxg3 {[%emt 0:00:30]} 49. Qxe5+ {[%emt 0:00:30]} Kg8 {[%emt 0:00:30]} 50. Rc8+ {[%emt 0:00:30]} Kh7 {[%emt 0:00:30]} 51. Qxg3 {[%emt 0:00:30]} h4 {[%emt 0:00:30]} 52. Rc7+ {[%emt 0:00:30]} Kh6 {[%emt 0:00:30]} 53. Qg7+ {[%emt 0:00:30]} Kh5 {[%emt 0:00:30]} 54. Rc5# {[%emt 0:00:30]} 1-0

[Event "53rd Indian Junior Open-ch 2024"]
[Site "Karnal"]
[Date "2024.09.24"]
[Round "11.1"]
[White "Madhvendra Pratap Sharma"]
[Black "Adireddy Arjun"]
[Result "0-1"]
[ECO "B40"]
[WhiteElo "2061"]
[BlackElo "2343"]
[Annotator "TA"]
[PlyCount "122"]
[EventDate "2024.09.16"]
[EventType "swiss"]
[EventCountry "IND"]
[SourceTitle "playchess.com"]
[Source "ChessBase"]
[SourceQuality "1"]
[TimeControl "5400+30"]

{[%evp 9,121,26,25,17,12,22,8,0,0,0,0,0,8,0,0,0,14,-12,-8,-3,-15,0,0,0,0,-33,-17,-257,-255,-253,-262,-259,-255,-259,-254,-246,-247,-255,-246,-265,-256,-276,-277,-272,-280,-281,-280,-354,-364,-440,-428,-429,-444,-447,-433,-483,-467,-468,-476,-581,-600,-567,-575,-601,-589,-650,-639,-1059,-1085,-931,-1094,-1122,-1147,-2399,-1216,-1362,-4602,-2147,-4627,-29984,-29985,-29985,-29986,-29986,-29987,-29987,-29988,-29988,-29989,-29989,-29990,-29990,-29991,-29991,-29992,-29992,-29992,-29992,-29992,-29992,-29992,-29992,-29993,-29994,-29995,-29996,-29997,-29997,-29998,-29998,-29998,-29998,-29999,-29999]} 1. e4 {[%emt 0:00:16]} c5 {[%emt 0:00:16]} 2. Nf3 {[%emt 0:00:14]} e6 {[%emt 0:00:06]} 3. b3 {[%emt 0:00:13]} d5 {[%emt 0:00:12]} 4. exd5 {[%emt 0:00:11]} exd5 {[%emt 0:00:02]} 5. Bb5+ {[%emt 0:00:13]} Nc6 {[%emt 0:00:11]} 6. O-O {[%emt 0:00:36]} Bd6 {[%emt 0:00:05]} 7. Bb2 {[%emt 0:01:15]} Nf6 {[%emt 0:00:08][%cal Bg8f6,Bf6h5,Bh5f4][%mdl 32]} 8. Re1+ {[%emt 0:03:59] The position is equal.} Be6 {[%emt 0:00:02]} 9. Be5 {[%emt 0:13:38]} O-O {[%emt 0:04:56]} 10. Bxc6 {[%emt 0:05:17]} bxc6 {[%emt 0:00:08]} 11. h3 {[%emt 0:06:46]} Re8 {[%emt 0:17:26]} 12. d3 {[%emt 0:13:11]} Nh5 {[%emt 0:18:36]} 13. Nc3 {[%emt 0:09:05]} Bxe5 {[%emt 0:16:48]} 14. Nxe5 {[%emt 0:16:17]} Qg5 {[%emt 0:02:18]} 15. Qf3 {[%emt 0:02:15][%cal Oc3a4]} Nf4 {[%emt 0:11:05]} 16. Qg3 {[%emt 0:01:34]} Qf6 {[%emt 0:00:37][%cal Oe6h3]} 17. Ne2 $1 {[%emt 0:07:22]} (17. Nxc6 $2 Bxh3 $17 (17... Qxc3 18. Qxf4 Bxh3 19. Ne5 $11) (17... Qxc3 18. Qxf4 Bxh3 19. Rxe8+ Rxe8 20. Rc1 $11)) 17... Nh5 {[%emt 0:00:07]} 18. Ng4 $2 {[%emt 0:01:21] Loses the game.} Qxa1 $19 {[%emt 0:00:43]} 19. Rxa1 {[%emt 0:00:13]} Nxg3 {[%emt 0:00:04]} 20. Nxg3 {[%emt 0:00:05]} f5 {[%emt 0:03:19]} 21. Nh2 {[%emt 0:03:26]} f4 {[%emt 0:00:27]} 22. Ne2 {[%emt 0:00:34] [#]} Bxh3 $1 {[%emt 0:01:01][%mdl 512]} 23. Nxf4 {[%emt 0:00:12]} Bf5 {[%emt 0:01:48]} 24. Kf1 {[%emt 0:02:33]} g5 {[%emt 0:04:16]} 25. Nh5 {[%emt 0:01:01]} Re6 {[%emt 0:01:08] Repels Nf6+} 26. Ng3 {[%emt 0:01:47]} Bg6 {[%emt 0:00:53]} 27. Nf3 {[%emt 0:00:37]} h6 {[%emt 0:03:45]} 28. a3 {[%emt 0:02:18]} a5 {[%emt 0:01:44]} 29. Re1 {[%emt 0:00:58]} Rxe1+ {[%emt 0:05:36]} 30. Kxe1 {[%emt 0:00:13][%mdl 4096] Endgame. KRB-KNN} a4 {[%emt 0:03:33]} 31. bxa4 {[%emt 0:00:22]} Kg7 {[%emt 0:00:34]} 32. Kd2 {[%emt 0:01:16]} Rxa4 {[%emt 0:00:02]} 33. Ne5 {[%emt 0:01:21]} Be8 {[%emt 0:00:08]} 34. Nf1 {[%emt 0:01:14]} Kf6 {[%emt 0:00:43]} 35. Nf3 {[%emt 0:01:02]} Rxa3 {[%emt 0:00:13]} 36. Ne3 {[%emt 0:00:08]} h5 {[%emt 0:01:00]} 37. g3 {[%emt 0:00:44]} Bd7 {[%emt 0:00:20]} 38. d4 {[%emt 0:00:29]} cxd4 {[%emt 0:01:57]} 39. Nxd4 {[%emt 0:00:19]} h4 {[%emt 0:00:37] [#] And now ...h3 would win.} 40. gxh4 {[%emt 0:00:43]} gxh4 {[%emt 0:00:05]} 41. f4 {[%emt 0:00:11]} h3 {[%emt 0:00:34] ( -> ...h2)} 42. Nf1 {[%emt 0:00:19]} Ra1 {[%emt 0:00:22]} 43. Nh2 {[%emt 0:00:10]} c5 {[%emt 0:00:36]} 44. Ne2 {[%emt 0:06:32]} Rh1 {[%emt 0:00:18] Black mates.} 45. Nf3 {[%emt 0:00:00]} Bg4 {[%emt 0:00:33]} 46. Ne5 {[%emt 0:00:00]} Bxe2 {[%emt 0:00:13]} 47. Kxe2 {[%emt 0:00:00] KR-KN} h2 {[%emt 0:00:05]} 48. Kf2 {[%emt 0:00:00]} Rg1 {[%emt 0:00:26]} 49. Nf3 {[%emt 0:00:00]} h1=Q {[%emt 0:00:04]} 50. Nxg1 {[%emt 0:00:00]} Qh2+ {[%emt 0:00:05]} 51. Kf1 {[%emt 0:00:00]} Qxc2 {[%emt 0:00:04]} 52. Nf3 {[%emt 0:00:00]} d4 {[%emt 0:00:07]} 53. Ne1 {[%emt 0:00:00]} Qd2 {[%emt 0:00:09]} 54. Nf3 {[%emt 0:00:00]} Qxf4 {[%emt 0:00:11]} 55. Kg2 {[%emt 0:00:00]} d3 {[%emt 0:00:05]} 56. Ng1 {[%emt 0:00:00]} d2 {[%emt 0:00:04]} 57. Nh3 {[%emt 0:00:00]} Qg4+ {[%emt 0:00:07]} 58. Kh1 {[%emt 0:00:00]} d1=Q+ {[%emt 0:00:08]} 59. Kh2 {[%emt 0:00:00]} Qc2+ {[%emt 0:00:05]} 60. Nf2 {[%emt 0:00:00]} Qxf2+ {[%emt 0:00:04]} 61. Kh1 {[%emt 0:00:00]} Qgg2# {[%emt 0:00:05] Weighted Error Value: White=0.47/Black=0.01 (flawless) .  Loses game:     	White=1     	---        Inaccurate:     	White=2     	---        OK:         	White=10    	Black=22     Best:        	---       	Black=3      Strong:       	White=1     	---} 0-1

[Event "53rd Indian Junior Open-ch 2024"]
[Site "Karnal"]
[Date "2024.09.24"]
[Round "11.4"]
[White "Sourath Biswas"]
[Black "Hari Ganesh T"]
[Result "1-0"]
[ECO "D05"]
[WhiteElo "2305"]
[BlackElo "2029"]
[Annotator "RC"]
[PlyCount "79"]
[EventDate "2024.09.16"]
[EventType "swiss"]
[EventCountry "IND"]
[SourceTitle "playchess.com"]
[Source "ChessBase"]
[SourceQuality "1"]
[TimeControl "5400+30"]

1. d4 {[%emt 0:00:02]} Nf6 {[%emt 0:01:20]} 2. Nf3 {[%emt 0:00:09]} d5 {[%emt 0:00:05]} 3. e3 {[%emt 0:01:06]} e6 {[%emt 0:00:12]} 4. Bd3 {[%emt 0:00:16]} c5 {[%emt 0:00:06]} 5. b3 {[%emt 0:00:22]} Nc6 {[%emt 0:00:05]} 6. Bb2 {[%emt 0:00:40]} Bd6 {[%emt 0:00:07]} 7. Nbd2 {[%emt 0:01:03]} O-O {[%emt 0:00:46]} 8. O-O {[%emt 0:00:15]} b6 {[%emt 0:00:11]} 9. dxc5 {[%emt 0:06:38]} Bxc5 {[%emt 0:00:42]} 10. a3 {[%emt 0:01:44]} a5 {[%emt 0:05:04]} 11. Qe2 {[%emt 0:01:17]} Bb7 {[%emt 0:13:37]} 12. Rfd1 {[%emt 0:03:27]} Re8 {[%emt 0:15:35]} 13. e4 {[%emt 0:08:54]} Rc8 {[%emt 0:14:38]} 14. e5 {[%emt 0:14:27]} Nd7 {[%emt 0:00:10]} 15. c4 {[%emt 0:01:01]} Bf8 {[%emt 0:00:41]} 16. cxd5 {[%emt 0:01:39]} exd5 {[%emt 0:00:03]} 17. Bf5 {[%emt 0:03:12]} g6 {[%emt 0:00:38]} 18. Bh3 {[%emt 0:05:33]} Bg7 {[%emt 0:01:27]} 19. Nc4 {[%emt 0:00:15]} Rc7 {[%emt 0:03:14]} 20. Nd6 {[%emt 0:03:57]} Ndxe5 {[%emt 0:01:14]} 21. Nxe8 {[%emt 0:01:59]} Qxe8 {[%emt 0:00:53]} 22. Nxe5 {[%emt 0:01:19]} Nxe5 {[%emt 0:01:59]} 23. Bd4 {[%emt 0:02:29]} Re7 {[%emt 0:00:13]} 24. Qd2 {[%emt 0:00:20]} Qc6 {[%emt 0:04:59]} 25. f4 {[%emt 0:15:05]} Nd7 {[%emt 0:01:46]} 26. Re1 {[%emt 0:00:08]} Bxd4+ {[%emt 0:00:53]} 27. Qxd4 {[%emt 0:00:04]} Qc5 {[%emt 0:00:00]} 28. Qxc5 {[%emt 0:00:25]} Rxe1+ {[%emt 0:00:02]} 29. Rxe1 {[%emt 0:00:07]} Nxc5 {[%emt 0:00:04]} 30. Re8+ {[%emt 0:01:00]} Kg7 {[%emt 0:00:03]} 31. Rb8 {[%emt 0:00:04]} Ba6 {[%emt 0:02:14]} 32. Rxb6 {[%emt 0:00:23]} Be2 {[%emt 0:03:07]} 33. Kf2 {[%emt 0:00:52]} Bd1 {[%emt 0:00:56]} 34. b4 {[%emt 0:00:05]} Ne4+ {[%emt 0:01:16]} 35. Ke3 {[%emt 0:00:04]} axb4 {[%emt 0:01:29]} 36. Rxb4 {[%emt 0:00:10]} Nd6 {[%emt 0:01:17]} 37. Kd4 {[%emt 0:00:26]} Nc4 {[%emt 0:00:17]} 38. a4 {[%emt 0:00:17]} Nd6 {[%emt 0:00:27]} 39. Kxd5 {[%emt 0:00:11]} Ne8 {[%emt 0:00:02]} 40. Kc6 {[%emt 0:00:23]} 1-0

[Event "53rd Indian Junior Open-ch 2024"]
[Site "Karnal"]
[Date "2024.09.24"]
[Round "11.5"]
[White "Khadanga Omm Aditya"]
[Black "Manish Anto Cristiano F"]
[Result "0-1"]
[ECO "A00"]
[WhiteElo "1791"]
[BlackElo "2364"]
[Annotator "RC"]
[PlyCount "78"]
[EventDate "2024.09.16"]
[EventType "swiss"]
[EventCountry "IND"]
[SourceTitle "playchess.com"]
[Source "ChessBase"]
[SourceQuality "1"]
[TimeControl "5400+30"]

1. Nc3 {[%emt 0:00:33]} c5 {[%emt 0:01:45]} 2. Nf3 {[%emt 0:02:33]} Nc6 {[%emt 0:01:40]} 3. d4 {[%emt 0:02:29]} cxd4 {[%emt 0:01:18]} 4. Nxd4 {[%emt 0:00:15]} Nf6 {[%emt 0:00:43]} 5. Bg5 {[%emt 0:07:25]} e6 {[%emt 0:03:51]} 6. Nxc6 {[%emt 0:15:20]} bxc6 {[%emt 0:00:36]} 7. Ne4 {[%emt 0:02:46]} Be7 {[%emt 0:09:05]} 8. Nd6+ {[%emt 0:08:33]} Kf8 {[%emt 0:02:50]} 9. Nxc8 {[%emt 0:00:53]} Rxc8 {[%emt 0:00:30]} 10. Bxf6 {[%emt 0:03:37]} Bxf6 {[%emt 0:02:24]} 11. c3 {[%emt 0:01:19]} d5 {[%emt 0:01:44]} 12. e3 {[%emt 0:02:53]} Rb8 {[%emt 0:01:47]} 13. Rb1 {[%emt 0:11:09]} Qa5 {[%emt 0:03:46]} 14. a3 {[%emt 0:10:29]} g6 {[%emt 0:09:06]} 15. Bd3 {[%emt 0:00:50]} Kg7 {[%emt 0:01:15]} 16. O-O {[%emt 0:01:15]} Rb7 {[%emt 0:04:37]} 17. Qc1 {[%emt 0:04:24]} Qc7 {[%emt 0:05:06]} 18. b4 {[%emt 0:03:14]} c5 {[%emt 0:02:38]} 19. f4 {[%emt 0:04:10]} a5 {[%emt 0:04:14]} 20. e4 {[%emt 0:06:25]} axb4 {[%emt 0:07:39]} 21. axb4 {[%emt 0:01:14]} cxb4 {[%emt 0:06:22]} 22. cxb4 {[%emt 0:01:13]} Qb6+ {[%emt 0:00:19]} 23. Kh1 {[%emt 0:00:08]} Rc7 {[%emt 0:00:32]} 24. Qd1 {[%emt 0:01:41]} dxe4 {[%emt 0:02:19]} 25. Bxe4 {[%emt 0:08:12]} Rd8 {[%emt 0:00:05]} 26. Qe2 {[%emt 0:00:00]} Rd4 {[%emt 0:01:03]} 27. b5 {[%emt 0:00:00]} Rcc4 {[%emt 0:02:23]} 28. Bc6 {[%emt 0:00:00]} Rxf4 {[%emt 0:01:54]} 29. Rxf4 {[%emt 0:00:00]} Rxf4 {[%emt 0:00:07]} 30. Rf1 {[%emt 0:00:00]} Rxf1+ {[%emt 0:04:14]} 31. Qxf1 {[%emt 0:00:00]} Qe3 {[%emt 0:00:19]} 32. g3 {[%emt 0:00:00]} Bd4 {[%emt 0:00:32]} 33. Kg2 {[%emt 0:00:00]} Qd2+ {[%emt 0:01:13]} 34. Kh3 {[%emt 0:00:59]} f5 {[%emt 0:02:10]} 35. Qf4 {[%emt 0:02:00]} Qd1 {[%emt 0:05:41]} 36. Qc7+ {[%emt 0:00:50]} Kh6 {[%emt 0:00:17]} 37. Qe7 {[%emt 0:00:33]} Qg4+ {[%emt 0:01:14]} 38. Kg2 {[%emt 0:00:22]} Qe2+ {[%emt 0:00:06]} 39. Kh3 {[%emt 0:00:58]} g5 {[%emt 0:12:36]} 0-1

[Event "53rd Indian Junior Open-ch 2024"]
[Site "Karnal"]
[Date "2024.09.24"]
[Round "11.6"]
[White "Vyom Malhotra"]
[Black "Gawai Siddhant"]
[Result "1/2-1/2"]
[ECO "B06"]
[WhiteElo "1960"]
[BlackElo "2131"]
[Annotator "ChessBase"]
[PlyCount "128"]
[EventDate "2024.09.16"]
[EventType "swiss"]
[EventCountry "IND"]
[SourceTitle "playchess.com"]
[Source "ChessBase"]
[SourceQuality "1"]
[TimeControl "5400+30"]

1. e4 {[%emt 0:01:31]} g6 {[%emt 0:00:11]} 2. d4 {[%emt 0:00:07]} Bg7 {[%emt 0:00:03]} 3. Nc3 {[%emt 0:00:13]} d6 {[%emt 0:00:04]} 4. Nf3 {[%emt 0:00:10]} a6 {[%emt 0:00:06]} 5. Bg5 {[%emt 0:00:49]} Bg4 {[%emt 0:02:13]} 6. Be2 {[%emt 0:00:30]} Nc6 {[%emt 0:00:35]} 7. d5 {[%emt 0:02:24]} Bxf3 {[%emt 0:01:20]} 8. Bxf3 {[%emt 0:00:23]} Nd4 {[%emt 0:00:05]} 9. O-O {[%emt 0:01:38]} c5 {[%emt 0:02:52]} 10. dxc6 {[%emt 0:00:33]} bxc6 {[%emt 0:00:43]} 11. Be3 {[%emt 0:01:33]} Nxf3+ {[%emt 0:05:34]} 12. Qxf3 {[%emt 0:00:26]} Qc7 {[%emt 0:00:09]} 13. Rfe1 {[%emt 0:07:38]} Rb8 {[%emt 0:04:09]} 14. Rab1 {[%emt 0:01:28]} Nf6 {[%emt 0:01:36]} 15. Bd4 {[%emt 0:00:29]} e5 {[%emt 0:02:39]} 16. Be3 {[%emt 0:01:53]} O-O {[%emt 0:00:20]} 17. Red1 {[%emt 0:01:24]} a5 {[%emt 0:09:20]} 18. Bg5 {[%emt 0:01:14]} Ne8 {[%emt 0:00:13]} 19. Qd3 {[%emt 0:00:13]} f5 {[%emt 0:03:03]} 20. f3 {[%emt 0:03:59]} Rf7 {[%emt 0:03:01]} 21. a3 {[%emt 0:02:23]} Bf8 {[%emt 0:03:06]} 22. Kh1 {[%emt 0:06:04]} h6 {[%emt 0:04:21]} 23. Be3 {[%emt 0:00:57]} fxe4 {[%emt 0:02:07]} 24. fxe4 {[%emt 0:00:26]} Nf6 {[%emt 0:00:32]} 25. b4 {[%emt 0:01:48]} axb4 {[%emt 0:00:43]} 26. axb4 {[%emt 0:00:11]} Kg7 {[%emt 0:04:40]} 27. Rf1 {[%emt 0:06:46]} Rd8 {[%emt 0:10:31]} 28. Ra1 {[%emt 0:08:07]} Qe7 {[%emt 0:02:22]} 29. b5 {[%emt 0:07:40]} cxb5 {[%emt 0:03:20]} 30. Qxb5 {[%emt 0:00:45]} Qe6 {[%emt 0:04:59]} 31. Qd3 {[%emt 0:05:48]} Be7 {[%emt 0:01:23]} 32. Qd2 {[%emt 0:02:49]} g5 {[%emt 0:02:06]} 33. Qd3 {[%emt 0:14:25]} Rdf8 {[%emt 0:02:49]} 34. Ne2 {[%emt 0:00:26]} Nh5 {[%emt 0:03:55]} 35. Rxf7+ {[%emt 0:00:17]} Rxf7 {[%emt 0:00:04]} 36. Ng3 {[%emt 0:02:33]} Nxg3+ {[%emt 0:01:07]} 37. hxg3 {[%emt 0:00:02]} Qg4 {[%emt 0:00:53]} 38. Kh2 {[%emt 0:00:56]} h5 {[%emt 0:00:44]} 39. Bb6 {[%emt 0:05:47]} h4 {[%emt 0:02:21]} 40. gxh4 {[%emt 0:01:18]} Qxh4+ {[%emt 0:00:35]} 41. Kg1 {[%emt 0:00:11]} Rf6 {[%emt 0:02:07]} 42. Rf1 {[%emt 0:03:41]} Rh6 {[%emt 0:00:31]} 43. Rf5 {[%emt 0:01:10]} g4 {[%emt 0:01:53]} 44. Kf1 {[%emt 0:01:05]} g3 {[%emt 0:05:46]} 45. Qf3 {[%emt 0:01:57]} d5 {[%emt 0:04:29]} 46. Be3 {[%emt 0:06:30]} dxe4 {[%emt 0:00:17]} 47. Bxh6+ {[%emt 0:00:43]} Kxh6 {[%emt 0:00:41]} 48. Qb3 {[%emt 0:00:37]} Qh1+ {[%emt 0:00:09]} 49. Ke2 {[%emt 0:00:04]} Qxg2+ {[%emt 0:00:07]} 50. Ke1 {[%emt 0:00:49]} Bg5 {[%emt 0:03:03]} 51. Qe6+ {[%emt 0:00:36]} Kh5 {[%emt 0:00:01]} 52. Qf7+ {[%emt 0:00:30]} Kg4 {[%emt 0:00:24]} 53. Rxg5+ {[%emt 0:00:11]} Kxg5 {[%emt 0:00:04]} 54. Qg7+ {[%emt 0:00:13]} Kf5 {[%emt 0:00:24]} 55. Qf7+ {[%emt 0:00:32]} Kg4 {[%emt 0:00:04]} 56. Qg6+ {[%emt 0:00:09]} Kf3 {[%emt 0:00:15]} 57. Qf5+ {[%emt 0:00:05]} Ke3 {[%emt 0:00:07]} 58. Qg5+ {[%emt 0:00:04]} Kd4 {[%emt 0:00:49]} 59. Qd8+ {[%emt 0:00:14]} Kc3 {[%emt 0:00:13]} 60. Qc7+ {[%emt 0:00:13]} Kb2 {[%emt 0:00:23]} 61. Qxe5+ {[%emt 0:00:29]} Kxc2 {[%emt 0:01:24]} 62. Qc5+ {[%emt 0:00:08]} Kb2 {[%emt 0:00:33]} 63. Qb4+ {[%emt 0:02:09]} Ka1 {[%emt 0:01:36]} 64. Qa4+ {[%emt 0:00:35]} Kb2 {[%emt 0:01:13]} 1/2-1/2

[Event "53rd Indian Junior Open-ch 2024"]
[Site "Karnal"]
[Date "2024.09.24"]
[Round "11.7"]
[White "Kushal O"]
[Black "Utkrisht Tuli"]
[Result "1/2-1/2"]
[ECO "D02"]
[WhiteElo "2130"]
[BlackElo "2007"]
[Annotator "RC"]
[PlyCount "47"]
[EventDate "2024.09.16"]
[EventType "swiss"]
[EventCountry "IND"]
[SourceTitle "playchess.com"]
[Source "ChessBase"]
[SourceQuality "1"]
[TimeControl "5400+30"]

1. d4 {[%emt 0:06:47]} d5 {[%emt 0:00:09]} 2. Nf3 {[%emt 0:00:04]} e6 {[%emt 0:00:06]} 3. Bf4 {[%emt 0:00:25]} Nf6 {[%emt 0:00:35]} 4. e3 {[%emt 0:00:03]} c5 {[%emt 0:00:05]} 5. c3 {[%emt 0:00:11]} Bd6 {[%emt 0:00:08]} 6. Bd3 {[%emt 0:00:22]} Qc7 {[%emt 0:04:51]} 7. Bxd6 {[%emt 0:00:06]} Qxd6 {[%emt 0:00:02]} 8. Ne5 {[%emt 0:01:44]} O-O {[%emt 0:00:58]} 9. Nd2 {[%emt 0:00:07]} b6 {[%emt 0:01:13]} 10. f4 {[%emt 0:07:08]} Ba6 {[%emt 0:00:29]} 11. Bxa6 {[%emt 0:00:39]} Nxa6 {[%emt 0:00:02]} 12. g4 {[%emt 0:00:20]} Nd7 {[%emt 0:08:46]} 13. g5 {[%emt 0:02:42]} Nxe5 {[%emt 0:09:20]} 14. fxe5 {[%emt 0:02:08]} Qe7 {[%emt 0:00:11]} 15. Qh5 {[%emt 0:09:01]} Rfc8 {[%emt 0:04:30]} 16. O-O {[%emt 0:16:54]} Qe8 {[%emt 0:14:08]} 17. Rf3 {[%emt 0:07:32]} f5 {[%emt 0:00:22]} 18. Qh4 {[%emt 0:03:40]} Qe7 {[%emt 0:01:57]} 19. Nf1 {[%emt 0:11:01]} Nb8 {[%emt 0:01:24]} 20. Ng3 {[%emt 0:08:20]} Kh8 {[%emt 0:02:15]} 21. Kh1 {[%emt 0:00:01]} Kg8 {[%emt 0:00:04]} 22. Kg1 {[%emt 0:00:03]} Kh8 {[%emt 0:00:04]} 23. Kh1 {[%emt 0:00:02]} Kg8 {[%emt 0:00:06]} 24. Kg1 {[%emt 0:01:02]} 1/2-1/2

[Event "53rd Indian Junior Open-ch 2024"]
[Site "Karnal"]
[Date "2024.09.24"]
[Round "11.8"]
[White "Arshpreet Singh"]
[Black "Mukund Hemant Agarwal"]
[Result "1-0"]
[ECO "B22"]
[WhiteElo "1905"]
[BlackElo "2073"]
[Annotator "RC"]
[PlyCount "117"]
[EventDate "2024.09.16"]
[EventType "swiss"]
[EventCountry "IND"]
[SourceTitle "playchess.com"]
[Source "ChessBase"]
[SourceQuality "1"]
[TimeControl "5400+30"]

1. e4 {[%emt 0:00:13]} c5 {[%emt 0:00:02]} 2. c3 {[%emt 0:00:01]} d5 {[%emt 0:00:19]} 3. exd5 {[%emt 0:00:04]} Qxd5 {[%emt 0:00:07]} 4. Nf3 {[%emt 0:00:15]} Nf6 {[%emt 0:00:08]} 5. d4 {[%emt 0:00:16]} e6 {[%emt 0:00:12]} 6. Na3 {[%emt 0:04:13]} Nc6 {[%emt 0:00:43]} 7. Be3 {[%emt 0:07:36]} cxd4 {[%emt 0:00:27]} 8. Nb5 {[%emt 0:00:06]} Qd7 {[%emt 0:02:38]} 9. Nbxd4 {[%emt 0:01:01]} a6 {[%emt 0:00:01]} 10. Nxc6 {[%emt 0:04:04]} Qxc6 {[%emt 0:00:02]} 11. Ne5 {[%emt 0:07:24]} Qc7 {[%emt 0:00:02]} 12. Qa4+ {[%emt 0:04:52]} Nd7 {[%emt 0:00:02]} 13. Nxd7 {[%emt 0:01:00]} Bxd7 {[%emt 0:00:47]} 14. Qc4 {[%emt 0:01:10]} Qxc4 {[%emt 0:17:18]} 15. Bxc4 {[%emt 0:00:12]} Rc8 {[%emt 0:00:05]} 16. Bd3 {[%emt 0:06:23]} Bc5 {[%emt 0:08:36]} 17. Ke2 {[%emt 0:03:54]} Bxe3 {[%emt 0:06:09]} 18. Kxe3 {[%emt 0:00:07]} Bc6 {[%emt 0:00:06]} 19. c4 {[%emt 0:06:03]} Ke7 {[%emt 0:07:48]} 20. b4 {[%emt 0:00:55]} Bxg2 {[%emt 0:11:37]} 21. Rhg1 {[%emt 0:00:04]} Bh3 {[%emt 0:00:01]} 22. Rxg7 {[%emt 0:00:04]} Bf5 {[%emt 0:00:14]} 23. Bxf5 {[%emt 0:02:06]} exf5 {[%emt 0:00:02]} 24. Kd4 {[%emt 0:00:33]} Kf6 {[%emt 0:04:59]} 25. Rg3 {[%emt 0:06:43]} Rhe8 {[%emt 0:21:33]} 26. Re3 {[%emt 0:00:07]} Red8+ {[%emt 0:00:20]} 27. Kc3 {[%emt 0:00:08]} Rd7 {[%emt 0:00:21]} 28. Rb1 {[%emt 0:18:57]} Rdc7 {[%emt 0:03:54]} 29. c5 {[%emt 0:00:14]} b6 {[%emt 0:00:17]} 30. a4 {[%emt 0:04:21]} a5 {[%emt 0:03:21]} 31. Kb3 {[%emt 0:01:52]} bxc5 {[%emt 0:00:20]} 32. b5 {[%emt 0:00:13]} Rd7 {[%emt 0:01:02]} 33. Rc1 {[%emt 0:04:55]} Rd2 {[%emt 0:02:06]} 34. Rc2 {[%emt 0:04:26]} Rd4 {[%emt 0:01:19]} 35. Rc4 {[%emt 0:00:06]} Rd2 {[%emt 0:05:15]} 36. Rf3 {[%emt 0:01:25]} Ke6 {[%emt 0:03:28]} 37. Rcf4 {[%emt 0:02:38]} Rd4 {[%emt 0:01:41]} 38. Rxf5 {[%emt 0:06:52]} Rb4+ {[%emt 0:01:10]} 39. Kc3 {[%emt 0:00:15]} Rc7 {[%emt 0:00:12]} 40. Rf6+ {[%emt 0:00:40]} Ke5 {[%emt 0:00:01]} 41. R6f5+ {[%emt 0:03:28]} Ke6 {[%emt 0:00:01]} 42. R5f4 {[%emt 0:00:37]} Ke5 {[%emt 0:01:11]} 43. Rf5+ {[%emt 0:00:02]} Ke6 {[%emt 0:00:05]} 44. R5f4 {[%emt 0:00:27]} Ke5 {[%emt 0:00:01]} 45. Rc4 {[%emt 0:00:30]} f5 {[%emt 0:01:04]} 46. Re3+ {[%emt 0:00:22]} Kd5 {[%emt 0:00:38]} 47. Rd3+ {[%emt 0:00:07]} Ke5 {[%emt 0:00:16]} 48. f4+ {[%emt 0:00:36]} Ke6 {[%emt 0:00:33]} 49. Re3+ {[%emt 0:00:07]} Kd6 {[%emt 0:00:50]} 50. Re5 {[%emt 0:00:23]} Rb1 {[%emt 0:00:53]} 51. Rxf5 {[%emt 0:00:54]} Re7 {[%emt 0:00:45]} 52. Rfxc5 {[%emt 0:01:15]} Re3+ {[%emt 0:00:36]} 53. Kd4 {[%emt 0:00:19]} Ree1 {[%emt 0:00:39]} 54. Rd5+ {[%emt 0:00:39]} Ke6 {[%emt 0:00:07]} 55. Rc6+ {[%emt 0:00:25]} Kf7 {[%emt 0:00:06]} 56. Rd7+ {[%emt 0:00:30]} Ke8 {[%emt 0:00:01]} 57. Rxh7 {[%emt 0:00:24]} Rb4+ {[%emt 0:00:40]} 58. Kc5 {[%emt 0:00:19]} Rc1+ {[%emt 0:00:04]} 59. Kb6 {[%emt 0:00:18]} 1-0